bitfinex-derivatives/quotes_ETHF0:USTF0_20250817
["timestamp","ask_amount","ask_price","bid_price","bid_amount"]
[1755405490310,0.6789,4471.2,4471.1,4.633]
[1755405490508,0.261,4471.2,4471.1,4.633]
[1755405490713,1.2114,4471.2,4471.1,4.633]
[1755405491012,1.4584,4471.2,4471.1,4.3909]
[1755405491217,1.4584,4471.2,4471.1,4.633]
[1755405492213,1.4584,4471.2,4471.1,4.3909]
[1755405493915,3.2078,4471.8,4471.1,4.3909]
[1755405494119,1.1974,4471.2,4471.1,4.3909]
[1755405494320,1.4584,4471.2,4471.1,4.3909]
[1755405494916,1.4584,4471.2,4471.1,4.0346]
[1755405495117,1.4584,4471.2,4471.1,3.6273]
[1755405495319,1.4584,4471.2,4471.1,3.2078]
[1755405497925,0.5818,4471.2,4470.8,0.3563]
[1755405498125,0.5896,4471.0,4470.4,5.1863602]
[1755405498320,3.2078,4471.8,4470.8,0.561]
[1755405498321,1.474,4470.9,4470.8,0.561]
[1755405498516,1.474,4470.9,4470.8,1.1679]
[1755405500923,0.5896,4470.6,4470.5,0.561]
[1755405501320,0.5896,4470.6,4470.5,0.7983]
[1755405501523,1.2273,4470.6,4470.5,1.4046]
[1755405501721,1.474,4470.6,4470.4,5.1863602]
[1755405501917,1.474,4470.6,4470.5,1.1673]
[1755405503627,1.474,4470.6,4470.5,0.9263]
[1755405505628,1.474,4470.6,4470.5,0.1585]
[1755405506130,1.474,4470.6,4470.5,0.4083]
[1755405506527,1.474,4470.6,4470.5,0.7648]
[1755405507833,1.474,4470.6,4470.5,0.1585]
[1755405508031,1.474,4470.6,4470.5,0.9263]
[1755405508929,1.474,4470.6,4470.5,0.4083]
[1755405509130,1.474,4470.6,4470.4,3.2078]
[1755405509329,1.474,4470.5,4470.4,3.2078]
[1755405509634,1.474,4470.5,4470.4,3.4576]
[1755405510934,1.474,4470.5,4470.4,3.2078]
[1755405511330,0.5896,4470.2,4470.1,0.2498]
[1755405511535,1.474,4470.2,4469.9,3.2078]
[1755405511829,0.5896,4470.0,4469.9,3.6161]
[1755405512035,1.474,4470.0,4469.9,3.9726]
[1755405512237,1.474,4470.0,4469.9,3.2078]
[1755405512536,1.474,4470.0,4469.9,4.3751]
[1755405513733,1.2273,4470.7,4470.6,0.561]
[1755405513939,1.474,4470.7,4470.6,1.4046]
[1755405515141,1.474,4470.7,4470.6,1.1673]
[1755405515740,1.474,4470.7,4470.6,0.1585]
[1755405516443,0.5896,4470.7,4469.9,3.2078]
[1755405516645,1.474,4470.0,4469.9,4.3751]
[1755405517847,1.474,4470.0,4469.9,4.6124]
[1755405520349,1.474,4470.0,4469.9,4.3751]
[1755405520852,1.474,4470.0,4469.9,3.2078]
[1755405521254,0.5896,4470.0,4469.7,0.2498]
[1755405521555,1.474,4469.8,4469.7,0.2498]
[1755405522244,1.474,4469.8,4469.7,0.4083]
[1755405523054,1.3097,4469.7,4469.6,0.32]
[1755405523251,1.474,4469.7,4469.6,0.9263]
[1755405523650,1.474,4469.7,4469.4,3.2078]
[1755405523651,0.5896,4469.5,4469.4,3.2078]
[1755405523853,1.474,4469.4,4469.3,0.2498]
[1755405525147,1.474,4469.4,4468.7,25.88346161]
[1755405525347,0.6777,4468.9,4468.8,1.4046]
[1755405525554,1.0647,4468.9,4468.8,1.4046]
[1755405526149,0.387,4469.2,4468.8,1.1673]
[1755405526457,3.2078,4470.3,4468.7,24.35212141]
[1755405526653,1.474,4469.8,4469.7,4.3751]
[1755405527955,1.474,4469.8,4469.7,1.1673]
[1755405528260,1.474,4469.8,4469.7,0.4083]
[1755405528559,1.474,4469.8,4469.7,0.1585]
[1755405529255,0.591,4469.5,4469.4,0.2456]
[1755405529558,1.4534,4469.5,4469.2,3.5651]
[1755405529758,1.4534,4469.4,4469.3,0.2456]
[1755405530051,1.4534,4469.4,4469.3,0.4061]
[1755405531158,1.4534,4469.4,4469.2,3.2078]
[1755405531458,1.4534,4469.4,4469.3,0.9328]
[1755405531754,1.4534,4469.4,4469.3,0.1605]
[1755405531953,1.4534,4469.4,4469.3,0.9328]
[1755405532152,1.4534,4469.4,4469.3,1.1922]
[1755405538952,1.4534,4469.4,4469.2,3.2078]
[1755405539154,1.4534,4468.8,4468.7,4.4]
[1755405539561,1.4534,4468.8,4468.7,4.6514]
[1755405540959,1.4534,4468.8,4468.7,3.2078]
[1755405541162,1.4534,4468.8,4468.7,4.4]
[1755405541661,1.4534,4468.8,4468.7,3.2078]
[1755405541960,1.4534,4468.8,4468.7,3.6139]
[1755405542157,1.4534,4468.8,4468.7,3.2078]
[1755405542362,1.4534,4468.8,4468.7,1.1922]
[1755405542561,1.4534,4468.8,4468.7,1.4436]
[1755405543061,1.4534,4468.8,4468.7,1.1922]
[1755405543251,0.6229,4468.7,4468.2,3.2078]
[1755405543456,1.4534,4468.4,4468.3,1.1922]
[1755405545066,0.8305,4469.0,4468.9,0.5893]
[1755405545269,1.4534,4469.0,4468.9,1.1922]
[1755405545565,1.4534,4469.0,4468.9,0.9328]
[1755405547260,1.4534,4469.0,4468.7,0.2456]
[1755405547455,1.2055,4468.5,4468.4,0.5755]
[1755405547665,1.4534,4468.5,4468.4,0.9328]
[1755405547959,1.4534,4468.5,4468.4,0.5755]
[1755405548165,1.4534,4468.5,4468.4,0.1605]
[1755405548566,1.4534,4468.5,4468.4,0.4061]
[1755405548767,1.4534,4468.5,4468.4,1.1922]
[1755405549466,1.4534,4468.5,4468.4,1.4436]
[1755405550368,0.7903,4468.6,4468.5,1.0375]
[1755405550564,1.4534,4468.6,4468.5,0.9466]
[1755405550868,1.4534,4468.6,4468.5,1.1922]
[1755405551764,0.8624,4468.5,4468.3,0.2456]
[1755405552067,1.4534,4468.4,4468.3,0.4061]
[1755405552255,1.4534,4468.4,4468.3,0.7634]
[1755405552762,1.4534,4468.4,4468.2,3.2078]
[1755405552957,0.4874,4468.3,4468.2,3.6139]
[1755405553165,1.4534,4468.3,4468.2,3.9712]
[1755405553468,1.4534,4468.3,4468.2,4.1406]
[1755405554567,1.4534,4468.3,4468.2,3.2078]
[1755405555468,1.4534,4468.3,4467.9,0.2456]
[1755405555669,0.591,4468.1,4468.0,0.5178]
[1755405555968,1.4534,4468.1,4468.0,0.5178]
[1755405556370,1.4534,4468.1,4468.0,0.7634]
[1755405557070,1.4534,4468.1,4468.0,0.9328]
[1755405557567,1.4726,4467.8,4467.7,3.451]
[1755405557760,1.4726,4467.8,4467.7,4.3838]
[1755405558162,1.4726,4467.8,4467.7,4.6376]
[1755405558860,1.4726,4467.8,4467.7,4.3838]
[1755405559266,1.2154,4467.8,4467.7,4.6376]
[1755405559467,0.2558,4467.8,4467.7,4.6376]
[1755405560268,0.8068,4467.8,4467.7,4.6376]
[1755405560968,1.0569,4467.8,4467.7,4.6376]
[1755405561472,1.4726,4467.8,4467.7,4.3838]
[1755405562872,1.4726,4467.8,4467.7,3.2078]
[1755405563372,1.4726,4467.8,4467.7,4.3838]
[1755405564872,0.6743,4467.8,4467.7,4.6376]
[1755405565072,1.2154,4468.4,4468.3,1.176]
[1755405565369,1.4726,4468.4,4468.3,1.176]
[1755405565575,1.4726,4468.4,4468.3,0.9361]
[1755405565869,1.4726,4468.4,4468.0,0.6008]
[1755405566067,0.8956,4468.3,4468.2,0.1685]
[1755405566270,0.577,4468.3,4468.2,0.7693]
[1755405566567,0.577,4468.3,4468.2,0.1685]
[1755405566768,1.09,4468.3,4467.9,0.2432]
[1755405566967,0.8342,4467.9,4467.8,1.176]
[1755405567167,0.8342,4467.9,4467.8,1.4298]
[1755405567569,1.4726,4467.9,4467.8,1.176]
[1755405567768,1.4726,4467.8,4467.7,3.2078]
[1755405568565,1.4726,4467.8,4467.7,4.1439]
[1755405568770,1.4726,4467.8,4467.7,4.3838]
[1755405570063,1.4726,4467.8,4467.7,4.6376]
[1755405570263,1.0569,4467.8,4467.7,4.6376]
[1755405570472,0.6743,4467.8,4467.7,4.6376]
[1755405570670,0.2558,4467.8,4467.7,4.6376]
[1755405570872,0.2558,4468.0,4467.9,0.5752]
[1755405571069,0.2558,4468.0,4467.9,1.4298]
[1755405571874,0.4242,4468.0,4467.9,1.4298]
[1755405572073,1.0569,4468.0,4467.9,1.4298]
[1755405573275,1.2154,4468.0,4467.9,1.4298]
[1755405573476,1.4726,4468.0,4467.9,1.4298]
[1755405573974,1.4726,4468.0,4467.7,3.2078]
[1755405573975,0.9596,4467.8,4467.7,4.0262]
[1755405574176,1.4726,4467.8,4467.7,4.3838]
[1755405574373,0.6743,4467.8,4467.7,4.6376]
[1755405574875,0.1684,4467.9,4467.8,0.8184]
[1755405575076,0.8068,4467.9,4467.8,1.4298]
[1755405575276,1.0569,4467.9,4467.8,1.4298]
[1755405575675,1.3141,4467.9,4467.8,1.4298]
[1755405575876,1.4726,4467.9,4467.8,1.4298]
[1755405577075,3.7848,4468.6,4468.5,0.5752]
[1755405577377,3.7848,4468.6,4468.1,0.6008]
[1755405577575,0.4242,4467.8,4467.7,4.0368]
[1755405577873,0.2558,4467.8,4467.7,4.0368]
[1755405578079,0.2558,4467.8,4467.7,4.6376]
[1755405578976,0.4242,4467.8,4467.7,4.6376]
[1755405579190,1.4726,4467.8,4467.7,4.6376]
[1755405580484,1.2154,4467.8,4467.7,4.6376]
[1755405580785,0.2558,4467.8,4467.7,4.6376]
[1755405582883,0.8956,4468.6,4467.8,0.8546]
[1755405583083,1.4726,4468.6,4468.5,1.176]
[1755405583286,1.0569,4468.6,4468.5,1.4298]
[1755405583478,0.6743,4468.6,4468.5,1.176]
[1755405583787,1.4726,4468.6,4468.5,1.4298]
[1755405585788,1.2154,4468.6,4468.5,1.4298]
[1755405586278,1.2154,4468.6,4468.5,1.176]
[1755405586580,1.2154,4468.6,4468.5,1.4298]
[1755405586886,1.4726,4468.6,4468.5,1.4298]
[1755405589588,0.9588,4469.0,4468.9,0.6021]
[1755405589788,1.455,4469.0,4468.9,1.4525]
[1755405589983,0.8085,4469.0,4468.9,1.4525]
[1755405590288,1.455,4469.0,4468.9,1.4525]
[1755405590878,0.2419,4469.0,4468.9,1.4525]
[1755405591087,0.2543,4469.3,4468.9,1.4525]
[1755405591088,0.3922,4469.9,4469.5,0.6021]
[1755405591283,0.2419,4469.6,4469.5,1.4525]
[1755405595792,0.8884,4470.7,4469.6,0.5979]
[1755405596097,1.455,4470.7,4470.6,1.2]
[1755405598686,1.455,4470.7,4470.3,0.2404]
[1755405598886,0.5666,4470.5,4470.4,0.2404]
[1755405599085,1.2007,4470.5,4470.4,0.4085]
[1755405599294,1.455,4470.5,4470.4,0.5801]
[1755405599597,1.455,4470.5,4470.4,0.937]
[1755405601097,1.455,4470.5,4470.4,1.1994]
[1755405601298,1.455,4470.5,4470.4,1.4519]
[1755405601889,1.455,4470.5,4470.4,1.1994]
[1755405602102,1.455,4470.5,4470.4,0.4085]
[1755405602295,0.8884,4470.4,4470.1,3.5647]
[1755405602497,0.5666,4470.2,4470.1,4.1668]
[1755405602701,0.5666,4470.2,4470.1,3.2078]
[1755405602702,1.455,4470.2,4470.1,3.2078]
[1755405603001,0.5666,4469.7,4469.6,3.2078]
[1755405603197,1.455,4469.7,4469.6,3.6163]
[1755405603401,1.455,4469.7,4469.6,4.4072]
[1755405605996,0.3922,4471.8,4469.8,0.44711]
[1755405606216,0.6474,4471.2,4471.1,4.6597]
[1755405606503,0.2419,4471.2,4471.1,4.6597]
[1755405606802,1.455,4471.2,4471.1,3.7879]
[1755405607299,1.455,4471.2,4471.1,3.3759]
[1755405607496,1.455,4471.2,4471.1,3.2078]
[1755405608102,1.455,4471.2,4471.1,4.4072]
[1755405609409,1.2007,4471.2,4471.1,4.4072]
[1755405609618,1.0396,4471.2,4471.1,4.6597]
[1755405611013,1.2007,4471.2,4471.1,4.6597]
[1755405611213,1.455,4471.2,4471.1,4.6597]
[1755405611913,1.455,4471.2,4471.1,4.4072]
[1755405612106,1.455,4471.2,4471.1,3.2078]
[1755405614821,1.455,4471.2,4469.8,3.2078]
[1755405614822,0.5345,4471.1,4469.8,3.2078]
[1755405615123,0.9246,4470.4,4470.3,4.6654]
[1755405615920,0.3288,4470.4,4470.3,4.6654]
[1755405616120,0.5707,4470.4,4470.3,4.6654]
[1755405616418,0.8633,4470.4,4470.3,4.6654]
[1755405616717,0.9246,4470.4,4470.3,4.6654]
[1755405618321,0.9246,4470.4,4470.3,3.4702]
[1755405619312,0.9246,4470.4,4470.3,3.2078]
[1755405619521,0.5548,4470.3,4469.8,3.2078]
[1755405619733,0.9492,4469.9,4469.8,4.6514]
[1755405620420,0.8475,4469.9,4469.8,4.6514]
[1755405620622,0.8866,4469.9,4469.8,4.6514]
[1755405622618,0.5875,4469.9,4469.8,4.6514]
[1755405622918,0.3318,4469.9,4469.8,4.6514]
[1755405623118,0.1648,4469.9,4469.8,4.6514]
[1755405623318,0.427,4470.3,4470.2,0.166]
[1755405623627,0.9479,4469.9,4469.8,4.6514]
[1755405626516,0.3318,4469.9,4469.8,4.6514]
[1755405627329,0.5875,4469.9,4469.8,4.6514]
[1755405627518,0.8475,4469.9,4469.8,4.6514]
[1755405628025,3.2078,4470.8,4469.8,4.6514]
[1755405628228,0.0386,4470.6,4469.9,0.858]
[1755405628429,0.3318,4470.1,4470.0,1.4436]
[1755405628726,3.2078,4470.8,4470.0,0.5856]
[1755405628919,0.7191,4470.3,4470.2,1.4436]
[1755405629121,0.8861,4470.3,4470.2,1.4436]
[1755405629316,3.2078,4470.8,4470.2,1.4436]
[1755405629624,0.9479,4470.3,4470.2,1.4436]
[1755405629822,3.2078,4471.3,4470.2,1.4436]
[1755405630023,0.1648,4470.5,4470.4,1.4436]
[1755405630218,0.8861,4470.9,4470.8,0.5856]
[1755405630426,0.9479,4470.9,4470.8,1.4436]
[1755405631626,0.1648,4471.0,4470.9,1.2776]
[1755405631827,0.9479,4471.0,4470.9,1.4436]
[1755405632730,0.9479,4471.0,4470.9,1.1945]
[1755405632930,0.9479,4471.0,4470.9,0.4196]
[1755405633227,0.9479,4471.0,4470.3,3.2078]
[1755405633430,0.9093,4470.4,4470.3,3.6274]
[1755405633733,0.5543,4471.2,4470.4,0.858]
[1755405634131,0.9479,4471.1,4471.0,0.4196]
[1755405634434,0.9479,4471.1,4471.0,1.4436]
[1755405636134,0.3318,4471.1,4471.0,0.9429]
[1755405636336,0.1648,4471.1,4471.0,1.4436]
[1755405636536,0.8475,4471.1,4471.0,1.4436]
[1755405636734,0.8861,4471.1,4471.0,1.4436]
[1755405637332,3.2078,4471.8,4471.0,1.4436]
[1755405637531,0.6536,4471.7,4471.6,0.5856]
[1755405637732,0.6536,4471.7,4471.6,1.4436]
[1755405638033,0.9479,4471.7,4471.6,1.4436]
[1755405638837,0.9479,4471.7,4471.6,0.2605]
[1755405639333,0.5543,4471.6,4470.9,0.3573]
[1755405639534,0.9479,4471.0,4470.9,1.4436]
[1755405639730,0.167,4471.1,4471.0,0.3573]
[1755405639930,0.8861,4471.1,4471.0,1.4436]
[1755405640737,0.9479,4471.1,4471.0,1.4436]
[1755405641234,0.3318,4471.1,4471.0,1.4436]
[1755405641435,0.8475,4471.4,4471.3,0.5856]
[1755405641634,0.8475,4471.4,4471.3,1.4436]
[1755405642138,0.8861,4471.4,4471.3,1.4436]
[1755405643833,0.9479,4471.4,4471.3,1.4436]
[1755405644736,0.3936,4470.9,4470.8,3.7199]
[1755405644929,0.9479,4470.9,4470.8,3.4683]
[1755405645730,0.9479,4470.9,4470.8,3.2078]
[1755405646636,0.3936,4470.9,4470.5,0.2516]
[1755405646840,0.9479,4470.7,4470.6,0.2605]
[1755405647345,0.9479,4470.7,4470.6,1.1959]
[1755405647634,0.9479,4470.7,4470.2,3.2078]
[1755405647843,0.4025,4470.3,4470.2,4.6766]
[1755405648039,0.9343,4470.3,4470.2,4.6766]
[1755405648239,0.3409,4470.3,4470.2,4.6766]
[1755405648445,0.5318,4471.1,4470.3,0.8691]
[1755405648643,0.3794,4470.4,4470.3,0.5997]
[1755405648940,0.441,4470.4,4470.3,0.5997]
[1755405649443,0.3409,4470.4,4470.3,1.4688]
[1755405649641,0.8342,4470.4,4470.3,1.4688]
[1755405649838,0.8727,4470.4,4470.3,1.4688]
[1755405650938,0.1705,4470.4,4470.3,1.4688]
[1755405651138,0.8342,4470.8,4470.7,0.5997]
[1755405651344,0.8727,4470.8,4470.7,1.4688]
[1755405653544,0.9343,4470.8,4470.7,1.4688]
[1755405653740,0.9343,4470.8,4470.7,1.2267]
[1755405653942,0.9343,4470.8,4470.7,0.9782]
[1755405655247,0.4025,4470.8,4470.7,0.2552]
[1755405655446,0.4025,4470.8,4470.7,0.6337]
[1755405655648,0.4025,4470.8,4470.7,0.2552]
[1755405655941,0.9343,4470.8,4470.7,0.2552]
[1755405656246,0.9343,4470.8,4470.7,1.4688]
[1755405658346,0.9343,4470.8,4470.7,1.2267]
[1755405658542,0.9343,4470.8,4470.4,0.2421]
[1755405658849,0.9343,4470.5,4470.4,1.0903]
[1755405659348,0.9343,4470.5,4470.4,1.4688]
[1755405662752,0.4198,4470.5,4470.4,1.4688]
[1755405662949,0.4198,4470.5,4470.2,3.2078]
[1755405662950,0.1705,4470.6,4470.5,1.2983]
[1755405663253,0.1705,4470.6,4470.5,1.4688]
[1755405663855,0.5318,4470.9,4470.5,1.4688]
[1755405664055,0.4198,4470.9,4470.8,1.4688]
[1755405664354,0.3409,4471.0,4470.9,1.4688]
[1755405664555,0.8727,4471.0,4470.9,1.4688]
[1755405668458,0.9343,4471.0,4470.9,1.4688]
[1755405669561,3.2078,4471.2,4470.9,0.6337]
[1755405669860,0.8342,4471.7,4471.6,1.4688]
[1755405670061,0.8727,4471.7,4471.6,1.4688]
[1755405670261,0.9343,4471.7,4471.6,1.4688]
[1755405672058,0.1705,4471.7,4471.6,1.4688]
[1755405672464,0.9343,4471.6,4471.5,0.2552]
[1755405672665,0.9343,4471.6,4471.5,0.6337]
[1755405672858,0.3409,4471.0,4470.9,1.4688]
[1755405673162,0.8342,4471.0,4470.9,1.4688]
[1755405673661,0.441,4471.0,4470.4,1.9785602]
[1755405673963,0.9343,4470.5,4470.4,1.4688]
[1755405676361,0.9343,4470.5,4470.4,0.9782]
[1755405677062,0.9343,4470.5,4469.8,1.9785602]
[1755405677063,0.9343,4469.7,4469.6,1.4688]
[1755405679465,3.2078,4470.3,4470.2,0.594]
[1755405679667,4.27275116,4470.3,4470.2,1.4769]
[1755405680667,4.33375116,4470.3,4470.2,1.4769]
[1755405681070,4.33370433,4470.3,4470.2,1.4769]
[1755405681668,4.1369,4470.3,4470.2,1.4769]
[1755405682063,0.5293,4470.7,4470.2,1.4769]
[1755405682369,3.2078,4470.8,4470.5,1.4769]
[1755405682370,1.06487097,4470.6,4470.5,1.4769]
[1755405683569,0.19677097,4470.6,4470.5,1.4769]
[1755405683768,3.2078,4470.8,4470.5,0.594]
[1755405683970,0.5293,4471.8,4470.8,0.8829]
[1755405684169,0.9291,4471.8,4471.7,1.4769]
[1755405684365,1.12575304,4471.8,4471.7,0.9884]
[1755405685363,0.71475304,4471.8,4471.7,1.4769]
[1755405685559,1.12575304,4471.8,4471.7,1.4769]
[1755405686969,0.9291,4471.8,4471.7,0.2471]
[1755405687169,1.12570191,4471.8,4471.7,0.2471]
[1755405687364,0.5293,4471.7,4471.5,0.3944]
[1755405687569,1.12568815,4471.6,4471.5,0.6415]
[1755405688373,0.3388,4471.1,4471.0,1.2298]
[1755405688568,0.6433,4471.1,4471.0,1.4769]
[1755405688763,0.9291,4471.1,4471.0,1.4769]
[1755405689472,0.8681,4471.1,4471.0,1.4769]
[1755405690974,0.9291,4471.1,4471.0,0.9884]
[1755405691872,0.9291,4471.1,4471.0,1.4769]
[1755405692969,0.4379,4471.1,4470.3,3.6963]
[1755405693170,0.419,4470.4,4470.3,4.6847]
[1755405693372,0.2858,4470.6,4470.3,4.6847]
[1755405693574,0.2477,4470.6,4470.5,0.594]
[1755405693776,0.2477,4470.6,4470.5,1.4769]
[1755405693976,0.2435,4470.8,4470.5,1.4769]
[1755405694172,3.2078,4471.4,4470.6,1.4769]
[1755405694373,1.12681059,4471.3,4471.2,1.4769]
[1755405695076,1.12681059,4471.3,4471.2,1.2302]
[1755405696076,0.9291,4471.3,4471.2,1.2302]
[1755405696274,1.12681065,4471.3,4471.2,1.2302]
[1755405696678,1.12681118,4471.3,4471.2,1.2302]
[1755405699179,0.9291,4471.3,4471.2,1.2302]
[1755405699380,1.1268022,4471.3,4471.2,1.2302]
[1755405701583,1.1268022,4471.3,4471.2,1.4769]
[1755405705289,0.9291,4471.3,4471.2,1.4769]
[1755405705486,1.12685404,4471.3,4471.2,1.4769]
[1755405706083,1.12686774,4471.3,4471.2,1.4769]
[1755405706782,0.19776774,4471.3,4470.4,0.2467]
[1755405706983,0.4387,4471.1,4471.0,0.594]
[1755405707287,1.12766774,4471.1,4471.0,1.4769]
[1755405708379,1.12776354,4471.1,4471.0,1.4769]
[1755405708794,1.06626354,4471.1,4471.0,1.4769]
[1755405709690,1.12746354,4471.1,4471.0,1.4769]
[1755405710486,0.53666354,4471.1,4470.3,3.2078]
[1755405710686,0.3334,4470.5,4470.4,1.4958]
[1755405710886,0.87,4470.5,4470.4,1.4958]
[1755405711692,0.8318,4470.5,4470.4,1.4958]
[1755405711989,0.3334,4470.5,4470.4,1.4958]
[1755405712291,3.83866912,4470.5,4470.2,0.3913]
[1755405712488,0.3946,4470.3,4470.2,0.3913]
[1755405712693,1.12926912,4470.3,4470.2,0.3913]
[1755405712895,1.02986912,4470.3,4470.2,1.4958]
[1755405713091,1.12926912,4470.3,4470.2,1.4958]
[1755405713794,1.12926912,4470.3,4470.2,0.6399]
[1755405714496,0.9312,4470.3,4470.2,0.6399]
[1755405714796,1.12924464,4470.3,4470.2,0.6399]
[1755405715195,1.12924464,4470.3,4470.2,1.3289]
[1755405715898,1.12924464,4470.3,4470.2,1.4958]
[1755405717696,1.12924464,4470.3,4470.2,0.2486]
[1755405717900,0.87,4469.8,4469.7,1.4958]
[1755405718103,0.9312,4469.8,4469.7,1.4958]
[1755405718602,0.87,4469.8,4469.7,1.4958]
[1755405720203,0.8318,4469.8,4469.7,1.4958]
[1755405720601,0.87,4469.8,4469.7,1.4958]
[1755405720795,0.9312,4469.8,4469.7,1.4958]
[1755405721202,1.1287102,4469.8,4469.7,1.4958]
[1755405721405,0.9312,4469.8,4469.7,1.4958]
[1755405721906,3.2078,4470.0,4469.9,1.4958]
[1755405722106,3.40527529,4470.0,4469.9,1.4958]
[1755405722508,0.19747529,4470.0,4469.9,1.4958]
[1755405722705,3.2078,4470.5,4470.0,0.3913]
[1755405723001,3.2078,4470.5,4470.3,1.4958]
[1755405723002,1.06743636,4470.4,4470.3,1.4958]
[1755405723204,1.12863636,4470.4,4470.3,1.4958]
[1755405725705,1.12863636,4470.4,4470.3,0.9818]
[1755405726904,0.2782,4470.3,4469.3,0.9053]
[1755405727109,0.8318,4469.5,4469.4,1.4958]
[1755405727705,0.1613,4469.5,4469.4,1.4958]
[1755405727904,0.4984,4469.8,4469.7,0.5905]
[1755405728099,0.87,4469.8,4469.7,1.4958]
[1755405728308,0.3334,4469.8,4469.7,1.4958]
[1755405728504,0.1613,4469.8,4469.7,1.4958]
[1755405729008,0.6597,4469.8,4469.7,1.4958]
[1755405729220,0.8318,4469.8,4469.7,1.4958]
[1755405729512,0.87,4469.8,4469.7,1.4958]
[1755405731309,0.9312,4469.7,4469.6,1.4958]
[1755405731811,0.87,4469.7,4469.6,1.4958]
[1755405732803,0.3334,4469.7,4469.6,1.4958]
[1755405733108,3.2078,4470.0,4469.9,0.5905]
[1755405733308,4.06492152,4470.0,4469.9,1.4958]
[1755405733506,4.23702152,4470.0,4469.9,1.4958]
[1755405733706,4.27522152,4470.0,4469.9,1.4958]
[1755405739405,4.33712152,4470.0,4469.9,1.4958]
[1755405741018,4.33745206,4470.0,4469.9,1.4958]
[1755405746123,4.33745206,4470.0,4469.6,0.3844]
[1755405746324,0.5329,4469.8,4469.7,0.3844]
[1755405746520,1.12955206,4469.8,4469.7,0.3844]
[1755405747721,1.12955206,4469.8,4469.7,1.1068]
[1755405748221,1.12955206,4469.8,4469.7,0.6288]
[1755405748728,1.12955206,4469.8,4469.7,1.4375]
[1755405749028,0.19775206,4469.8,4469.7,1.4375]
[1755405749332,0.19775206,4469.9,4469.7,0.5751]
[1755405749626,3.2078,4470.0,4469.7,0.5751]
[1755405749627,0.19775206,4469.8,4469.7,0.5751]
[1755405749923,3.2078,4470.0,4469.9,0.5751]
[1755405750121,4.07413112,4470.0,4469.9,1.4375]
[1755405750327,4.27703112,4470.0,4469.9,1.4375]
[1755405751023,4.23833112,4470.0,4469.9,1.4375]
[1755405751230,3.40713112,4470.0,4469.9,1.4375]
[1755405753231,4.23833112,4470.0,4469.9,1.4375]
[1755405753533,4.27703112,4470.0,4469.9,1.4375]
[1755405755633,4.33893112,4470.0,4469.9,1.4375]
[1755405759131,4.1396,4470.0,4469.9,1.4375]
[1755405759333,4.33893024,4470.0,4469.9,1.4375]
[1755405759633,4.33893212,4470.0,4469.9,1.4375]
[1755405759830,4.1396,4470.0,4469.9,1.4375]
[1755405760030,4.33893253,4470.0,4469.9,1.4375]
[1755405765334,3.80603253,4470.0,4469.2,0.478]
[1755405765639,0.337,4469.4,4469.3,0.3307]
[1755405765839,1.03053253,4469.4,4469.3,0.5751]
[1755405766140,0.19933253,4469.4,4469.3,0.5751]
[1755405766340,4.1396,4470.0,4469.9,1.4375]
[1755405766541,4.33893321,4470.0,4469.9,1.4375]
[1755405768241,4.1396,4470.0,4469.9,1.4375]
[1755405768435,4.33892702,4470.0,4469.9,1.4375]
[1755405768735,4.1396,4470.0,4469.9,1.4375]
[1755405768941,4.33892672,4470.0,4469.9,1.4375]
[1755405770135,4.27702672,4470.0,4469.9,1.4375]
[1755405770345,4.23832672,4470.0,4469.9,1.4375]
[1755405771336,3.74412672,4470.0,4469.9,1.4375]
[1755405771942,4.24832672,4470.0,4469.9,1.4375]
[1755405774041,4.28702672,4470.0,4469.9,1.4375]
[1755405775944,3.74412672,4470.0,4469.9,1.4375]
[1755405776144,4.24832672,4470.0,4469.9,1.4375]
[1755405776444,4.28702672,4470.0,4469.9,1.4375]
[1755405777147,4.34892672,4470.0,4469.9,1.4375]
[1755405777342,4.34894404,4470.0,4469.9,1.4375]
[1755405777643,0.1656,4469.3,4469.2,1.4546]
[1755405777841,0.6698,4469.3,4469.2,1.4546]
[1755405778041,0.8399,4469.3,4469.2,1.4546]
[1755405778248,3.712,4470.0,4469.1,3.4313]
[1755405778440,4.1096,4470.0,4469.9,0.4216]
[1755405778743,4.34765324,4470.0,4469.9,1.4546]
[1755405779845,4.34765324,4470.0,4469.9,0.6242]
[1755405780145,4.34810006,4470.0,4469.9,0.6242]
[1755405780352,4.1483,4470.0,4469.9,0.6242]
[1755405780644,4.34809907,4470.0,4469.9,0.6242]
[1755405780846,4.34809907,4470.0,4469.9,1.2831]
[1755405781142,4.34809375,4470.0,4469.9,1.4546]
[1755405781745,4.24749375,4470.0,4469.9,1.4546]
[1755405782748,4.28619375,4470.0,4469.9,1.4546]
[1755405783950,4.34809375,4470.0,4469.9,1.4546]
[1755405784250,4.34809375,4470.0,4469.3,0.6178]
[1755405784450,0.3357,4469.4,4469.3,1.2109]
[1755405784749,0.53549375,4469.4,4469.3,1.4546]
[1755405785448,0.36539375,4469.4,4469.3,1.4546]
[1755405785648,0.19979375,4469.4,4469.3,1.4546]
[1755405785849,0.19979375,4469.5,4469.3,1.4546]
[1755405786045,0.19979375,4469.4,4469.3,1.4546]
[1755405786243,0.19979375,4469.8,4469.3,0.5931]
[1755405786446,0.19979375,4469.7,4469.3,0.5931]
[1755405786645,0.19979375,4469.6,4469.3,0.5931]
[1755405786944,0.19979375,4469.5,4469.4,1.4546]